bitfinex-derivatives/quotes_BTCF0:USTF0_20250922
["timestamp","ask_amount","ask_price","bid_price","bid_amount"]
[1758558500585,0.0005,112900.0,112890.0,1.57728452]
[1758558500987,0.0005,112900.0,112890.0,2.39832452]
[1758558501187,0.0005,112900.0,112890.0,1.1892498]
[1758558501382,0.0005,112900.0,112890.0,1.57728452]
[1758558501588,0.0005,112900.0,112890.0,2.39820452]
[1758558502188,0.0890003,112900.0,112890.0,2.39820452]
[1758558502388,0.0890003,112900.0,112890.0,2.39812452]
[1758558504588,0.3390003,112900.0,112890.0,2.39808452]
[1758558505092,0.3390003,112900.0,112890.0,2.39804452]
[1758558505289,0.36439932,112900.0,112890.0,2.39804452]
[1758558505792,0.3390003,112900.0,112890.0,2.39804452]
[1758558506285,0.36440261,112900.0,112890.0,2.39804452]
[1758558506792,0.36440261,112900.0,112890.0,2.39756452]
[1758558509688,0.36440261,112900.0,112890.0,1.57724452]
[1758558509992,0.36440261,112900.0,112890.0,2.39684452]
[1758558510189,0.27590231,112900.0,112890.0,2.39684452]
[1758558510391,0.0005,112900.0,112890.0,2.39684452]
[1758558513197,0.0005,112900.0,112890.0,2.39680452]
[1758558513995,0.0005,112900.0,112890.0,1.57720452]
[1758558514200,0.0005,112900.0,112890.0,2.39632452]
[1758558514396,0.2505,112900.0,112890.0,2.39632452]
[1758558514592,0.26377,112900.0,112890.0,2.39632452]
[1758558515293,0.26377,112900.0,112890.0,1.9950789]
[1758558516094,0.26377,112900.0,112890.0,2.38311362]
[1758558516489,0.2525,112900.0,112890.0,2.39509362]
[1758558518001,0.2565,112900.0,112890.0,1.57305362]
[1758558518205,0.2565,112900.0,112890.0,2.39197362]
[1758558518503,0.2525,112900.0,112890.0,2.39197362]
[1758558519001,0.2505,112900.0,112890.0,2.39197362]
[1758558519202,0.2515,112900.0,112890.0,2.39197362]
[1758558519404,0.0015,112900.0,112890.0,2.39197362]
[1758558519702,0.0015,112900.0,112890.0,2.39193362]
[1758558521099,0.0011,112900.0,112890.0,2.39193362]
[1758558521300,0.0015,112900.0,112890.0,2.39193362]
[1758558521692,0.0896011,112900.0,112890.0,1.57301362]
[1758558521902,0.0900011,112900.0,112890.0,2.39193362]
[1758558522103,0.0015,112900.0,112890.0,2.39193362]
[1758558522305,0.0900011,112900.0,112890.0,1.57301362]
[1758558522603,0.0900011,112900.0,112890.0,2.39193362]
[1758558524405,0.0900011,112900.0,112890.0,1.57301362]
[1758558524704,0.0900011,112900.0,112890.0,2.39193362]
[1758558525703,0.1032711,112900.0,112890.0,1.9909189]
[1758558526097,0.1032711,112900.0,112890.0,2.37895362]
[1758558526300,0.1032711,112900.0,112890.0,2.39193362]
[1758558528104,0.3532711,112900.0,112890.0,1.1719989]
[1758558529101,0.3532711,112900.0,112890.0,1.9909189]
[1758558529400,0.3532711,112900.0,112890.0,1.9908789]
[1758558529604,0.3532711,112900.0,112890.0,2.37891362]
[1758558530909,0.3532711,112900.0,112890.0,1.56003362]
[1758558531211,0.3532711,112900.0,112890.0,1.1719989]
[1758558531906,0.3532711,112900.0,112890.0,1.56003362]
[1758558533704,0.1032711,112900.0,112890.0,1.1719989]
[1758558533903,0.1032711,112900.0,112890.0,0.36189]
[1758558533904,0.76235582,112900.0,112890.0,0.36189]
[1758558534106,1.14864489,112900.0,112890.0,0.36189]
[1758558534909,1.96752489,112900.0,112890.0,0.36189]
[1758558537809,1.96752489,112900.0,112890.0,1.86189]
[1758558539415,1.14864489,112900.0,112890.0,1.86189]
[1758558539721,1.96752489,112900.0,112890.0,1.86189]
[1758558540424,1.96752489,112900.0,112890.0,0.36189]
[1758558540921,1.96752489,112900.0,112890.0,1.86189]
[1758558541617,1.96752489,112900.0,112870.0,0.3608]
[1758558541618,0.01281,112880.0,112870.0,0.3608]
[1758558541819,1.24147472,112880.0,112870.0,0.3615]
[1758558542025,1.26695373,112880.0,112870.0,1.8619]
[1758558542225,1.26691373,112880.0,112870.0,1.8615]
[1758558542420,1.26691373,112880.0,112870.0,1.8619]
[1758558542625,0.44807373,112880.0,112870.0,0.3619]
[1758558542829,1.26695373,112880.0,112870.0,0.3619]
[1758558543227,1.26695373,112880.0,112870.0,0.34]
[1758558543228,1.96627063,112880.0,112870.0,0.34]
[1758558543421,1.96627063,112880.0,112870.0,0.1604]
[1758558545126,1.96627063,112880.0,112870.0,0.0004]
[1758558547028,1.96621612,112880.0,112870.0,0.0004]
[1758558547926,1.14733612,112880.0,112870.0,0.0004]
[1758558548333,1.96621612,112880.0,112870.0,0.0004]
[1758558549230,1.71621612,112880.0,112870.0,0.0004]
[1758558549632,1.80474072,112880.0,112850.0,1.8609]
[1758558549937,0.42259472,112860.0,112850.0,2.2017]
[1758558550135,1.24151472,112860.0,112850.0,2.2008]
[1758558550327,1.24151472,112860.0,112850.0,2.2012]
[1758558550832,1.24151472,112860.0,112850.0,2.2102]
[1758558551135,1.25021863,112860.0,112850.0,2.2102]
[1758558551436,1.25021863,112860.0,112850.0,2.2082]
[1758558551627,0.43129863,112860.0,112850.0,2.2102]
[1758558552128,1.25021863,112860.0,112850.0,2.2102]
[1758558552333,1.33875123,112860.0,112850.0,0.7317]
[1758558552536,0.51983123,112860.0,112850.0,0.7102]
[1758558552833,1.40804184,112860.0,112850.0,2.2317]
[1758558555338,1.43343621,112860.0,112850.0,2.2317]
[1758558555531,1.43347621,112860.0,112850.0,2.2317]
[1758558556337,1.40808184,112860.0,112850.0,2.2317]
[1758558557340,1.43347479,112860.0,112850.0,2.2317]
[1758558559934,1.43343479,112860.0,112850.0,2.2317]
[1758558560635,1.62829487,112860.0,112850.0,2.2317]
[1758558561229,1.62829487,112860.0,112850.0,2.3202402]
[1758558563137,2.28054227,112860.0,112850.0,0.3494]
[1758558563330,2.28054227,112860.0,112850.0,0.0494]
[1758558563535,2.53054227,112860.0,112850.0,0.0094]
[1758558563736,2.53054227,112860.0,112850.0,0.009]
[1758558563937,2.53054227,112860.0,112850.0,0.0094]
[1758558564139,2.23909487,112860.0,112850.0,0.0094]
[1758558564337,2.27090515,112860.0,112850.0,0.0094]
[1758558567043,1.45198515,112860.0,112850.0,0.0094]
[1758558567243,2.27082515,112860.0,112850.0,0.0094]
[1758558568341,0.91680974,112860.0,112850.0,0.0094]
[1758558568548,2.31854454,112860.0,112850.0,0.009]
[1758558569044,2.31854454,112860.0,112850.0,0.0108912]
[1758558569045,1.50526454,112860.0,112850.0,0.0108912]
[1758558569341,2.29229426,112860.0,112850.0,0.0108912]
[1758558569537,1.47345426,112860.0,112850.0,0.0108912]
[1758558570146,2.29229426,112860.0,112850.0,0.0088912]
[1758558570444,2.29229426,112860.0,112850.0,0.0018912]
[1758558570949,1.47345426,112860.0,112850.0,0.0018912]
[1758558571147,2.32409992,112860.0,112850.0,0.0018912]
[1758558571547,2.29229426,112860.0,112850.0,0.0018912]
[1758558573553,1.47345426,112860.0,112850.0,0.0018912]
[1758558573852,2.29225426,112860.0,112850.0,0.0018912]
[1758558575549,1.47345426,112860.0,112850.0,0.0904312]
[1758558575755,1.47345426,112860.0,112850.0,0.3625212]
[1758558575756,0.84675907,112860.0,112850.0,0.3625212]
[1758558575955,1.37407167,112860.0,112850.0,0.3625212]
[1758558576156,2.02631907,112860.0,112850.0,0.3625212]
[1758558577057,0.84675907,112860.0,112850.0,0.3625212]
[1758558577258,0.84675907,112860.0,112850.0,0.7233212]
[1758558577559,1.66551907,112860.0,112850.0,0.7233212]
[1758558579347,1.66551907,112860.0,112850.0,0.4733212]
[1758558579554,1.66551907,112860.0,112850.0,0.0239812]
[1758558579755,1.71323846,112860.0,112850.0,0.0239812]
[1758558580450,1.71325468,112860.0,112850.0,0.0239812]
[1758558580754,2.04221426,112860.0,112850.0,0.0239812]
[1758558581260,1.68141426,112860.0,112850.0,0.1125212]
[1758558581562,1.68141426,112860.0,112850.0,0.0904312]
[1758558581746,1.68141426,112860.0,112850.0,0.0018912]
[1758558582060,2.33366166,112860.0,112850.0,0.0018912]
[1758558582257,2.33366166,112860.0,112850.0,0.0022912]
[1758558582456,2.04221426,112860.0,112850.0,0.0022912]
[1758558583752,2.33366166,112860.0,112850.0,0.0022912]
[1758558583952,2.58366166,112860.0,112850.0,0.0022912]
[1758558584154,2.54894227,112860.0,112850.0,0.0018912]
[1758558584360,2.59670946,112860.0,112850.0,0.0022912]
[1758558584558,2.59670956,112860.0,112850.0,0.0022912]
[1758558584755,2.60370956,112860.0,112850.0,0.0022912]
[1758558585960,2.6195299,112860.0,112850.0,0.0022912]
[1758558586158,0.1232479,112840.0,112830.0,0.0009]
[1758558586365,1.58206165,112840.0,112830.0,0.3508]
[1758558586557,0.76338165,112840.0,112830.0,0.37209]
[1758558586758,0.73153565,112840.0,112830.0,0.37249]
[1758558586957,1.55021565,112840.0,112830.0,0.37249]
[1758558587160,1.25876825,112840.0,112830.0,0.62249]
[1758558587360,1.26176825,112840.0,112830.0,0.62249]
[1758558587658,1.26876825,112840.0,112830.0,0.62249]
[1758558588165,0.97732085,112840.0,112830.0,0.62249]
[1758558588359,1.26876825,112840.0,112830.0,0.62249]
[1758558589469,0.97732085,112840.0,112830.0,0.62249]
[1758558589774,1.26876825,112840.0,112830.0,1.0718457]
[1758558590655,1.26876825,112840.0,112830.0,0.98329]
[1758558590863,0.15864085,112840.0,112830.0,1.0718457]
[1758558591066,0.45008825,112840.0,112830.0,1.3632931]
[1758558591266,1.26876825,112840.0,112830.0,1.3632931]
[1758558591466,1.26876825,112840.0,112830.0,1.0718457]
[1758558591762,1.56021565,112840.0,112830.0,1.0718457]
[1758558592576,1.26876825,112840.0,112830.0,1.0718457]
[1758558593572,1.56021565,112840.0,112830.0,1.0718457]
[1758558596073,1.26876825,112840.0,112830.0,1.0718457]
[1758558598075,1.56021565,112840.0,112830.0,1.0718457]
[1758558600569,1.56021565,112840.0,112830.0,1.3632931]
[1758558600765,1.56035929,112840.0,112830.0,1.3632931]
[1758558601874,0.36168399,112840.0,112830.0,1.1132931]
[1758558602078,0.85417659,112840.0,112830.0,1.6674205]
[1758558602377,0.85457659,112840.0,112830.0,1.3759731]
[1758558602574,0.85457659,112840.0,112830.0,1.0845257]
[1758558602778,1.18237399,112840.0,112830.0,0.8218457]
[1758558602975,1.56236919,112840.0,112830.0,0.8218457]
[1758558603668,1.56236919,112840.0,112830.0,0.8214457]
[1758558603868,1.56236919,112840.0,112830.0,0.8218457]
[1758558604078,1.56236919,112840.0,112830.0,0.8214457]
[1758558604378,1.56236919,112840.0,112830.0,0.8218457]
[1758558604774,1.56236919,112840.0,112830.0,0.73329]
[1758558605180,1.56236919,112840.0,112830.0,0.73289]
[1758558605379,1.56236919,112840.0,112830.0,0.73329]
[1758558606688,1.56236919,112840.0,112830.0,0.37249]
[1758558606981,2.49646259,112840.0,112830.0,0.0004]
[1758558607183,0.1249135,112820.0,112810.0,0.40439242]
[1758558607369,1.55194489,112820.0,112810.0,0.72499242]
[1758558607772,1.55194489,112820.0,112810.0,0.72419242]
[1758558607976,1.55194489,112820.0,112810.0,0.72459242]
[1758558608780,0.73334489,112820.0,112810.0,0.72459242]
[1758558608978,1.6219545,112820.0,112810.0,0.72459242]
[1758558609685,1.9827545,112820.0,112810.0,0.34071242]
[1758558609874,2.2327545,112820.0,112810.0,0.3204]
[1758558610078,1.4141545,112820.0,112810.0,0.3204]
[1758558610283,1.4141545,112820.0,112810.0,0.32]
[1758558610481,2.2327545,112820.0,112810.0,0.34348]
[1758558610688,1.4171545,112820.0,112810.0,0.34348]
[1758558610886,1.4490005,112820.0,112810.0,0.34348]
[1758558611181,2.2676005,112820.0,112810.0,0.34348]
[1758558611382,2.2746005,112820.0,112810.0,0.34348]
[1758558612185,2.2746405,112820.0,112810.0,0.3204]
[1758558613184,2.2427945,112820.0,112810.0,0.3204]
[1758558613583,1.6598997,112820.0,112810.0,0.3204]
[1758558613779,1.4241545,112820.0,112810.0,0.3204]
[1758558613984,2.2427545,112820.0,112810.0,0.3204]
[1758558614792,2.2427545,112820.0,112810.0,0.34363]
[1758558615181,1.0952005,112820.0,112810.0,0.4322013]
[1758558615381,1.0952005,112820.0,112810.0,0.7236487]
[1758558615382,1.2519436,112820.0,112810.0,0.7236487]
[1758558615689,1.3405071,112820.0,112810.0,0.7236487]
[1758558615884,1.3405071,112820.0,112810.0,0.4322013]
[1758558616074,1.3405071,112820.0,112810.0,0.34363]
[1758558616294,1.6319545,112820.0,112810.0,0.34363]
[1758558616790,1.9927545,112820.0,112810.0,0.34363]
[1758558617391,1.9927545,112820.0,112810.0,0.3204]
[1758558617782,1.9927545,112820.0,112810.0,0.32]
[1758558617982,2.0246005,112820.0,112810.0,0.3204]
[1758558618188,2.0246005,112820.0,112790.0,0.4728128]
[1758558618189,0.1242892,112800.0,112790.0,0.4728128]
[1758558618395,1.55132059,112800.0,112790.0,0.8034128]
[1758558618689,1.25987319,112800.0,112790.0,0.4418128]
[1758558618983,1.25987319,112800.0,112790.0,0.8030128]
[1758558619393,1.55132059,112800.0,112790.0,0.8030128]
[1758558619582,1.25987319,112800.0,112790.0,0.8030128]
[1758558619784,1.25987319,112800.0,112790.0,0.8026128]
[1758558620090,1.25987319,112800.0,112790.0,1.0944602]
[1758558620291,1.25987319,112800.0,112790.0,0.8030128]
[1758558620792,1.35739655,112800.0,112790.0,0.8030128]
[1758558620991,1.35939655,112800.0,112790.0,0.8030128]
[1758558621292,1.37207193,112800.0,112790.0,0.8030128]
[1758558621879,0.55347193,112800.0,112790.0,0.8030128]
[1758558622077,1.37211193,112800.0,112790.0,0.8030128]
[1758558622586,0.46489273,112800.0,112790.0,0.8030128]
[1758558622787,0.06277197,112800.0,112790.0,0.8159928]
[1758558622994,0.88141197,112800.0,112790.0,0.8159928]
[1758558623194,0.96999117,112800.0,112790.0,0.8159928]
[1758558624594,0.06277197,112800.0,112790.0,0.8159928]
[1758558624796,0.85885197,112800.0,112790.0,0.8159928]
[1758558624998,0.87994197,112800.0,112790.0,0.8159928]
[1758558625188,0.96852117,112800.0,112790.0,0.8159928]
[1758558625494,0.98183117,112800.0,112790.0,0.8159928]
[1758558626190,0.16319117,112800.0,112790.0,0.8159928]
[1758558626493,0.04021197,112800.0,112790.0,0.8159928]
[1758558626687,0.85017659,112800.0,112790.0,1.81576356]
[1758558626894,0.03153659,112800.0,112790.0,2.63440356]
[1758558627085,0.04039303,112800.0,112790.0,2.63440356]
[1758558628104,0.04039303,112800.0,112790.0,2.2454328]
[1758558628289,0.12897223,112800.0,112790.0,2.2454328]
[1758558629499,0.12897223,112800.0,112790.0,1.4267928]
[1758558629695,0.51794299,112800.0,112790.0,1.1767928]
[1758558629997,0.12897223,112800.0,112790.0,1.1767928]
[1758558630593,0.53125299,112800.0,112790.0,1.163417]
[1758558630992,1.35017299,112800.0,112790.0,1.163817]
[1758558631192,0.53125299,112800.0,112790.0,1.176797]
[1758558631391,0.94797223,112800.0,112790.0,1.176797]
[1758558631599,0.12011579,112800.0,112790.0,1.176797]
[1758558632300,0.93919579,112800.0,112790.0,1.176797]
[1758558633493,0.93919579,112800.0,112790.0,1.56576776]
[1758558633901,0.12011579,112800.0,112790.0,1.56576776]
[1758558634598,0.12011579,112800.0,112790.0,1.176797]
[1758558635495,0.13342579,112800.0,112790.0,1.163817]
[1758558635903,0.15451579,112800.0,112790.0,0.803017]
[1758558636892,0.15451579,112800.0,112790.0,0.71443]
[1758558637099,0.54348655,112800.0,112790.0,0.71443]
[1758558637603,0.54348655,112800.0,112790.0,0.71403]
[1758558637804,0.54348655,112800.0,112790.0,0.71443]
[1758558638204,0.54348655,112800.0,112790.0,0.803017]
[1758558639106,1.36212655,112800.0,112790.0,0.803017]
[1758558639804,0.54348655,112800.0,112790.0,0.803017]
[1758558640198,1.36212655,112800.0,112790.0,0.35363]
[1758558640600,1.39397255,112800.0,112790.0,0.35363]
[1758558641904,1.44174155,112800.0,112790.0,0.35363]
[1758558642104,1.39397255,112800.0,112790.0,0.35363]
[1758558642906,2.03294331,112800.0,112790.0,0.3304]
[1758558643213,1.64397255,112800.0,112790.0,0.33]
[1758558643403,1.64397255,112800.0,112790.0,0.3304]
[1758558644207,0.82533255,112800.0,112790.0,0.3304]
[1758558644402,1.18613255,112800.0,112790.0,0.3304]
[1758558644601,2.00477255,112800.0,112790.0,0.3304]
[1758558644798,2.40966631,112800.0,112790.0,0.3304]
[1758558645003,2.02069555,112800.0,112790.0,0.1704]
[1758558647313,2.40966631,112800.0,112790.0,0.1704]
[1758558648218,0.1019049,112780.0,112770.0,1.861]
[1758558648420,1.33505225,112780.0,112770.0,2.1816]
[1758558649214,1.33505225,112780.0,112770.0,1.9094027]
[1758558649409,1.33505225,112780.0,112770.0,1.9104027]
[1758558649602,0.94608149,112780.0,112770.0,1.9134027]
[1758558649807,1.33505225,112780.0,112770.0,1.9134027]
[1758558650210,1.33505225,112780.0,112770.0,1.8248]
[1758558650410,0.51641225,112780.0,112770.0,1.9134027]
[1758558650714,1.33509225,112780.0,112770.0,1.9096027]
[1758558650915,0.94612149,112780.0,112770.0,1.9096027]
[1758558651216,0.51641225,112780.0,112770.0,1.9090027]
[1758558651414,0.85748659,112780.0,112770.0,1.9090027]
[1758558651613,0.84421659,112780.0,112770.0,2.67172346]
[1758558652007,0.84421659,112780.0,112770.0,2.2827527]
[1758558652207,0.02553659,112780.0,112770.0,2.2827527]
[1758558652511,0.84421659,112780.0,112770.0,2.2827527]
[1758558652814,0.02553659,112780.0,112770.0,2.2827527]
[1758558653010,0.84421659,112780.0,112770.0,2.2827527]
[1758558654506,0.02553659,112780.0,112770.0,2.2827527]
[1758558654709,0.02553659,112780.0,112770.0,3.74040346]
[1758558656719,0.60239063,112810.0,112800.0,0.1104691]
[1758558657024,0.62780969,112810.0,112800.0,0.4712691]
[1758558657216,1.44644969,112810.0,112800.0,0.4712691]
[1758558657415,1.39868069,112810.0,112800.0,0.4712691]
[1758558657609,0.22552893,112810.0,112800.0,0.4839491]
[1758558657814,1.04416893,112810.0,112800.0,0.4839491]
[1758558658009,1.40267069,112810.0,112800.0,0.4712691]
[1758558659319,1.41267069,112810.0,112800.0,0.38269]
[1758558660921,1.41267069,112810.0,112800.0,0.4712691]
[1758558661316,1.41267069,112810.0,112800.0,0.38309]
[1758558661723,0.1249991,112800.0,112790.0,0.4712713]
[1758558661923,0.58715792,112800.0,112790.0,0.7520713]
[1758558662123,0.58715792,112800.0,112790.0,0.7512713]
[1758558662423,0.58715792,112800.0,112790.0,0.7516713]
[1758558662625,0.58715792,112800.0,112790.0,0.1208713]
[1758558663021,0.58715792,112800.0,112790.0,0.03229]
[1758558663219,0.94795792,112800.0,112790.0,0.03189]
[1758558663424,0.94795792,112800.0,112790.0,0.03229]
[1758558663621,0.95395792,112800.0,112790.0,0.120877]
[1758558664823,0.95695792,112800.0,112790.0,0.120877]
[1758558665022,0.95695792,112800.0,112790.0,0.03229]
[1758558665428,0.95695792,112800.0,112790.0,0.120877]
[1758558665630,0.95696771,112800.0,112790.0,0.120877]
[1758558666028,0.95696771,112800.0,112790.0,0.03229]
[1758558666425,1.20696771,112800.0,112790.0,0.0104]
[1758558666625,1.20696771,112800.0,112790.0,0.01]
[1758558666928,1.20696771,112800.0,112790.0,0.0104]
[1758558667127,1.2070111,112800.0,112790.0,0.01]
[1758558667326,0.1018948,112780.0,112770.0,1.9496023]
[1758558667535,1.3666885,112780.0,112770.0,1.79]
[1758558667730,1.3666885,112780.0,112770.0,1.8786027]
[1758558667921,1.3666885,112780.0,112770.0,1.8790027]
[1758558668122,1.3666885,112780.0,112770.0,1.8786027]
[1758558668726,1.3666885,112780.0,112770.0,1.8800027]
[1758558668931,1.3666885,112780.0,112770.0,1.8928327]
[1758558670232,0.97771774,112780.0,112770.0,1.8928327]
[1758558670432,1.43580145,112780.0,112770.0,2.2536327]
[1758558670828,0.61728145,112780.0,112770.0,2.2536327]
[1758558671027,0.51538665,112780.0,112770.0,2.2536327]
[1758558671234,0.21501069,112780.0,112770.0,2.2536327]
[1758558671530,0.94489589,112780.0,112770.0,2.64260346]
[1758558671834,0.9130618,112780.0,112770.0,2.64260346]
[1758558672035,0.0945418,112780.0,112770.0,2.64260346]
[1758558672334,0.0945418,112780.0,112770.0,2.89260346]
[1758558673028,0.1831366,112780.0,112770.0,2.89260346]
[1758558673228,0.0945418,112780.0,112770.0,2.89260346]
[1758558673934,0.06911295,112780.0,112770.0,2.89260346]
[1758558674133,0.9434927,112790.0,112780.0,0.1104848]
[1758558674326,0.9689229,112790.0,112780.0,0.8012848]
[1758558675139,0.9689229,112790.0,112780.0,0.8142248]
[1758558675435,0.9699229,112790.0,112780.0,0.8142248]
[1758558675833,0.9729229,112790.0,112780.0,0.8142248]
[1758558679934,0.0658502,112790.0,112780.0,0.8142248]
[1758558680141,0.8709902,112790.0,112780.0,1.20319556]
[1758558680536,0.0525502,112790.0,112780.0,1.20319556]
[1758558680840,0.9595771,112790.0,112780.0,1.20319556]
[1758558681339,0.9595771,112790.0,112780.0,0.8142248]
[1758558682532,1.25130576,112790.0,112780.0,1.10595346]
[1758558683539,0.9595771,112790.0,112780.0,1.10595346]
[1758558683740,1.25130576,112790.0,112780.0,1.10595346]
[1758558684639,0.8709902,112790.0,112780.0,1.39768212]
[1758558684940,0.9595771,112790.0,112780.0,1.10595346]
[1758558685535,1.25130576,112790.0,112780.0,1.10595346]
[1758558685835,0.0294302,112790.0,112780.0,1.39768212]
[1758558686035,0.0294302,112790.0,112780.0,1.64768212]
[1758558686236,0.004,112790.0,112780.0,1.64768212]
[1758558686435,0.004,112790.0,112780.0,2.46604212]
[1758558688539,0.004,112790.0,112780.0,2.47502928]
[1758558689141,0.004,112790.0,112780.0,1.65666928]
[1758558689343,0.004,112790.0,112780.0,2.47502928]
[1758558690036,0.004,112790.0,112780.0,2.76675794]
[1758558690241,0.0038,112790.0,112780.0,2.76675794]
[1758558690634,0.07000961,112820.0,112810.0,0.1226512]
[1758558690841,0.0254113,112820.0,112810.0,1.43597986]
[1758558691039,0.09748973,112820.0,112810.0,1.43597986]
[1758558691338,0.0254113,112820.0,112810.0,1.43597986]
[1758558691637,0.12283921,112820.0,112810.0,1.43597986]
[1758558692140,0.12783921,112820.0,112810.0,1.43597986]
[1758558692339,0.0444113,112820.0,112810.0,1.43597986]
[1758558692534,0.019,112820.0,112810.0,1.43597986]
[1758558693234,0.04439073,112820.0,112810.0,1.43597986]
[1758558693443,0.04439073,112820.0,112810.0,2.25421986]
[1758558693641,0.04439073,112820.0,112810.0,2.25417986]
[1758558694038,0.04439073,112820.0,112810.0,1.43597986]
[1758558694242,0.04439073,112820.0,112810.0,2.25417986]
[1758558694431,0.019,112820.0,112810.0,2.25417986]
[1758558694945,0.019,112820.0,112810.0,2.54590852]
[1758558695144,0.019,112820.0,112810.0,2.25417986]
[1758558695539,0.019,112820.0,112810.0,1.43597986]
[1758558695739,0.019,112820.0,112810.0,2.25413986]
[1758558697543,0.019,112820.0,112810.0,1.43597986]
[1758558697745,0.019,112820.0,112810.0,2.25409986]
[1758558698948,0.019,112820.0,112810.0,2.25401986]
[1758558701340,0.04436319,112820.0,112810.0,2.25401986]
[1758558701843,0.04436319,112820.0,112810.0,1.1442512]
[1758558702050,0.04436319,112820.0,112810.0,2.25397986]
[1758558703550,0.04436319,112820.0,112810.0,2.26300302]
[1758558703851,0.04436319,112820.0,112810.0,2.25397986]
[1758558704450,0.04436319,112820.0,112810.0,2.54570852]
[1758558704646,0.04436319,112820.0,112810.0,2.5661013]
[1758558705840,0.00036319,112820.0,112810.0,2.8161013]
[1758558706156,0.0001,112840.0,112830.0,0.1226355]
[1758558706449,1.26566675,112850.0,112840.0,0.1224776]
[1758558706750,1.26556675,112850.0,112840.0,1.11500626]
[1758558706950,0.97423809,112850.0,112840.0,0.8232776]
[1758558707153,1.27492357,112850.0,112840.0,1.11500626]
[1758558707343,0.98319491,112850.0,112840.0,1.11500626]
[1758558707544,1.26144357,112850.0,112840.0,1.11500626]
[1758558708246,1.26744357,112850.0,112840.0,1.11500626]
[1758558708455,1.27444357,112850.0,112840.0,1.11500626]
[1758558708648,1.39372606,112850.0,112840.0,1.11500626]
[1758558709642,1.34591492,112850.0,112840.0,1.11500626]
[1758558712049,1.37533197,112850.0,112840.0,0.8232776]
[1758558712249,1.37533197,112850.0,112840.0,1.11500626]
[1758558712448,1.32752083,112850.0,112840.0,1.11500626]
[1758558712644,1.3752298,112850.0,112840.0,1.11500626]
[1758558713345,1.32752083,112850.0,112840.0,1.11500626]
[1758558717949,1.35276033,112850.0,112840.0,1.11500626]
[1758558718953,1.40053417,112850.0,112840.0,1.11500626]
[1758558719455,1.40025417,112850.0,112840.0,1.11500626]
[1758558719657,1.40021417,112850.0,112840.0,1.11500626]
[1758558720657,0.16644151,112850.0,112840.0,1.40673492]
[1758558720859,0.0386395,112850.0,112840.0,1.65673492]
[1758558721157,0.06118152,112850.0,112840.0,1.65673492]
[1758558721350,0.06118152,112850.0,112840.0,2.47425492]
[1758558721550,0.08602102,112850.0,112840.0,2.47425492]
[1758558721752,0.08642102,112850.0,112840.0,2.47425492]
[1758558721952,0.07048392,112850.0,112840.0,2.47425492]
[1758558722354,0.06848392,112850.0,112840.0,2.47425492]
[1758558723061,0.06848392,112850.0,112840.0,1.65673492]
[1758558723247,0.06648392,112850.0,112840.0,2.47421492]
[1758558723759,0.06148392,112850.0,112840.0,2.47421492]
[1758558723960,0.06248392,112850.0,112840.0,2.47421492]
[1758558724158,0.0306395,112850.0,112840.0,2.47421492]
[1758558725154,0.0306395,112850.0,112840.0,2.48297621]
[1758558725358,0.0306395,112850.0,112840.0,1.8907576]
[1758558725659,0.0306395,112850.0,112840.0,2.47417492]
[1758558727558,0.0306395,112850.0,112840.0,1.65673492]
[1758558727860,0.42392796,112850.0,112840.0,3.1406776]
[1758558728054,0.42392796,112850.0,112840.0,3.41972626]
[1758558728254,0.1321993,112850.0,112840.0,3.41972626]
[1758558728455,0.1321993,112850.0,112840.0,3.71145492]
[1758558728651,0.0306395,112850.0,112840.0,3.72413492]
[1758558729059,0.0306395,112850.0,112840.0,4.01586358]
[1758558729259,0.0306395,112850.0,112840.0,3.72413492]
[1758558731556,0.0306395,112850.0,112840.0,4.01586358]
[1758558731956,0.0302395,112850.0,112840.0,4.01586358]
[1758558732156,0.0306395,112850.0,112840.0,4.01586358]
[1758558732362,0.0302395,112850.0,112840.0,4.01586358]
[1758558732565,0.0280125,112850.0,112840.0,4.01586358]
[1758558732858,0.0001,112860.0,112850.0,0.1237997]
[1758558733166,0.03264442,112870.0,112860.0,0.1239018]
[1758558733167,0.05319442,112870.0,112860.0,0.1239018]
[1758558733356,0.05389442,112870.0,112860.0,1.41815912]
[1758558734158,0.06691442,112870.0,112860.0,1.41815912]
[1758558734666,0.07391442,112870.0,112860.0,1.41815912]
[1758558734962,0.03505,112870.0,112860.0,1.41815912]
[1758558735167,0.0138,112870.0,112860.0,1.41815912]
[1758558737060,0.02281061,112870.0,112860.0,1.41815912]
[1758558737461,0.11133461,112870.0,112860.0,1.41815912]
[1758558738066,0.02281061,112870.0,112860.0,1.41815912]
[1758558740955,0.02281061,112870.0,112860.0,2.23531912]
[1758558742572,0.02281061,112870.0,112860.0,2.04024446]
[1758558745068,0.04783589,112870.0,112860.0,2.04024446]
[1758558745271,0.13635989,112870.0,112860.0,2.04016446]
[1758558747865,0.13635989,112870.0,112860.0,1.22308446]
[1758558748171,0.13635989,112870.0,112860.0,2.04012446]
[1758558748773,0.13635989,112870.0,112860.0,1.22308446]
[1758558748972,0.13635989,112870.0,112860.0,2.04008446]
[1758558749275,0.12734928,112870.0,112860.0,2.04008446]
[1758558749773,0.03882528,112870.0,112860.0,2.04008446]
[1758558750168,0.03802528,112870.0,112860.0,2.06103213]
[1758558750369,0.03802528,112870.0,112860.0,2.31103213]
[1758558750672,0.03842528,112870.0,112860.0,2.31103213]
[1758558751070,0.03802528,112870.0,112860.0,2.31103213]
[1758558751272,0.03842528,112870.0,112860.0,2.31103213]
[1758558751670,0.02542528,112870.0,112860.0,1.49403213]
[1758558751873,0.02842528,112870.0,112860.0,1.49403213]
[1758558752180,0.03524442,112870.0,112860.0,2.31095213]
[1758558752672,0.0602697,112870.0,112860.0,2.31095213]
[1758558753070,0.0602697,112870.0,112860.0,1.49403213]
[1758558753280,0.0598697,112870.0,112860.0,2.31091213]
[1758558753484,0.0602697,112870.0,112860.0,2.31091213]
[1758558754779,0.0602697,112870.0,112860.0,1.10564947]
[1758558754981,0.02842528,112870.0,112860.0,2.31087213]
[1758558755180,0.02842528,112870.0,112860.0,1.49403213]
[1758558755382,0.02842528,112870.0,112860.0,2.31087213]
[1758558759286,0.02842528,112870.0,112860.0,2.06087213]
[1758558763086,0.02842528,112870.0,112860.0,1.24403213]
[1758558763287,0.02842528,112870.0,112860.0,2.06071213]
[1758558764289,0.02842528,112870.0,112860.0,1.24403213]
[1758558764485,0.02842528,112870.0,112860.0,2.06067213]
[1758558764682,0.02842528,112870.0,112860.0,0.76711767]
[1758558764888,0.70128794,112870.0,112860.0,0.85564947]
[1758558765086,0.31290528,112870.0,112860.0,0.85564947]
[1758558765991,0.31290528,112870.0,112860.0,0.84270947]
[1758558766492,0.70128794,112870.0,112860.0,0.84270947]
[1758558766792,0.31290528,112870.0,112860.0,0.84270947]
[1758558768493,0.70128794,112870.0,112860.0,0.84270947]
[1758558768682,0.31290528,112870.0,112860.0,0.84270947]